fUST/lending_fUST_20241109
["ID","MTS","AMOUNT","RATE_DAILY","PERIOD"]
[341674515,1731081760303,170.8267436,0.000207,2]
[341674516,1731081806139,3004.21369995,0.00031891,30]
[341674518,1731082064326,694.44444444,0.00020843,2]
[341674519,1731082151265,170.764799,0.00020832,2]
[341674520,1731082151490,170.764799,0.00020843,2]
[341674521,1731082161906,3000.0,0.00020279,2]
[341674522,1731082221692,3064.44993573,0.00020843,2]
[341674523,1731082229555,3500.26431024,0.00020843,2]
[341674588,1731082238826,-170.764799,0.00020853,2]
[341674589,1731082238836,-170.764799,0.00020863,2]
[341674590,1731082238845,-170.764799,0.00020874,2]
[341674591,1731082238854,-161.56490146,0.00020884,2]
[341674592,1731082238866,-9.19989754,0.00020884,2]
[341674593,1731082238879,-761.548959,0.00020892,2]
[341674594,1731082238889,-170.764799,0.00020895,2]
[341674595,1731082238898,-170.764799,0.00020905,2]
[341674596,1731082238907,-170.764799,0.00020916,2]
[341674597,1731082238917,-300.0,0.00020916,2]
[341674598,1731082238928,-300.0,0.00020916,2]
[341674599,1731082238938,-1000.000001,0.00020916,2]
[341674600,1731082238950,-11251.14355574,0.00020917,2]
[341674616,1731082240592,-2483.42998209,0.00020917,2]
[341674617,1731082242427,-2877.26831707,0.00020917,2]
[341674618,1731082242437,-170.764799,0.00020926,2]
[341674619,1731082242448,-170.764799,0.00020936,2]
[341674620,1731082242458,-761.548959,0.00021577,2]
[341674621,1731082242469,-1000.0,0.000218,2]
[341674622,1731082242480,-174.03601499,0.00021817,2]
[341674623,1731082242490,-2451.96249176,0.00021817,2]
[341674624,1731082242500,-500.000001,0.0002185,2]
[341674625,1731082242510,-500.0,0.00021916,2]
[341674626,1731082242520,-500.0,0.00021916,2]
[341674627,1731082242530,-232.09827828,0.00021916,2]
[341674628,1731082242540,-1000.0,0.00021916,2]
[341674629,1731082242550,-187.80703794,0.00021917,2]
[341674630,1731082242561,-500.0,0.00021917,2]
[341674631,1731082242570,-510.55404762,0.00021917,2]
[341674632,1731082242580,-500.0,0.00021917,2]
[341674633,1731082242590,-500.0,0.00021917,2]
[341674634,1731082242600,-500.0,0.00021917,2]
[341674635,1731082242610,-511.48023942,0.00021917,2]
[341674636,1731082242620,-511.33306638,0.00021917,2]
[341674637,1731082242643,-504.13019052,0.00021917,2]
[341674638,1731082242652,-514.48577883,0.00021917,2]
[341674639,1731082242662,-500.0,0.00021917,2]
[341674640,1731082242672,-500.0,0.00021917,2]
[341674641,1731082242682,-504.27267186,0.00021917,2]
[341674642,1731082242691,-207.7942714,0.00021917,2]
[341674643,1731082242701,-201.75469449,0.00021917,2]
[341674644,1731082242711,-500.0,0.00021917,2]
[341674645,1731082242721,-500.0,0.00021917,2]
[341674646,1731082242731,-500.0,0.00021917,2]
[341674647,1731082242741,-504.51344097,0.00021917,2]
[341674648,1731082242751,-504.22309041,0.00021917,2]
[341674649,1731082242760,-250.0,0.00021917,2]
[341674650,1731082242771,-515.87691793,0.00021917,2]
[341674651,1731082242780,-502.79978572,0.00021917,2]
[341674652,1731082242790,-500.0,0.00021917,2]
[341674653,1731082242800,-500.0,0.00021917,2]
[341674654,1731082242810,-500.0,0.00021917,2]
[341674655,1731082242821,-500.0,0.00021917,2]
[341674656,1731082242831,-500.0,0.00021917,2]
[341674657,1731082242841,-500.0,0.00021917,2]
[341674658,1731082242850,-500.0,0.00021917,2]
[341674659,1731082242860,-500.0,0.00021917,2]
[341674660,1731082242870,-500.0,0.00021917,2]
[341674661,1731082242880,-524.720566,0.00021917,2]
[341674662,1731082242890,-500.0,0.00021917,2]
[341674663,1731082242899,-282.4,0.00021917,2]
[341674664,1731082242908,-500.0,0.00021917,2]
[341674665,1731082242919,-500.0,0.00021917,2]
[341674666,1731082242928,-500.0,0.00021917,2]
[341674667,1731082242939,-500.0,0.00021917,2]
[341674668,1731082242952,-500.0,0.00021917,2]
[341674669,1731082242961,-500.0,0.00021917,2]
[341674670,1731082242970,-252.12,0.00021917,2]
[341674671,1731082242981,-336.81457917,0.00021917,2]
[341674672,1731082242990,-500.0,0.00021917,2]
[341674673,1731082243000,-500.0,0.00021917,2]
[341674674,1731082243010,-500.0,0.00021917,2]
[341674675,1731082243020,-157.29215257,0.00021917,2]
[341674677,1731082243032,-500.0,0.00021917,2]
[341674678,1731082243041,-1000.0,0.00021917,5]
[341674679,1731082243050,-500.0,0.00021917,2]
[341674680,1731082243059,-500.0,0.00021917,2]
[341674681,1731082243069,-500.0,0.00021917,2]
[341674682,1731082243078,-500.0,0.00021917,2]
[341674683,1731082243098,-596.99413332,0.00021917,2]
[341674684,1731082243109,-500.93660237,0.00021917,2]
[341674685,1731082243118,-500.0,0.00021917,2]
[341674687,1731082243134,-516.8128178,0.00021917,2]
[341674688,1731082243144,-500.0,0.00021917,2]
[341674689,1731082243154,-500.0,0.00021917,2]
[341674690,1731082243169,-500.0,0.00021917,2]
[341674691,1731082243179,-500.0,0.00021917,2]
[341674692,1731082243188,-500.0,0.00021917,2]
[341674693,1731082243198,-500.0,0.00021917,2]
[341674694,1731082243207,-500.0,0.00021917,2]
[341674695,1731082243217,-450.33401778,0.00021917,2]
[341674696,1731082243227,-500.0,0.00021917,2]
[341674697,1731082243236,-544.55855869,0.00021917,2]
[341674698,1731082243246,-500.0,0.00021917,2]
[341674699,1731082243256,-500.0,0.00021917,2]
[341674700,1731082243266,-500.0,0.00021917,2]
[341674701,1731082243275,-170.79936228,0.00021917,2]
[341674702,1731082243285,-500.0,0.00021917,2]
[341674703,1731082243296,-500.0,0.00021917,2]
[341674704,1731082243307,-500.0,0.00021917,2]
[341674705,1731082243316,-500.0,0.00021917,2]
[341674706,1731082243326,-500.0,0.00021917,2]
[341674707,1731082243336,-500.0,0.00021917,2]
[341674708,1731082243348,-530.26643491,0.00021917,2]
[341674709,1731082243357,-500.0,0.00021917,2]
[341674710,1731082243367,-500.0,0.00021917,2]
[341674711,1731082243381,-500.0,0.00021917,2]
[341674712,1731082243397,-523.89328639,0.00021917,2]
[341674713,1731082243407,-500.0,0.00021917,2]
[341674714,1731082243416,-500.0,0.00021917,2]
[341674715,1731082243428,-500.0,0.00021917,2]
[341674716,1731082243438,-500.0,0.00021917,2]
[341674717,1731082243449,-500.0,0.00021917,2]
[341674718,1731082243459,-500.0,0.00021917,2]
[341674719,1731082243470,-500.0,0.00021917,2]
[341674720,1731082243480,-500.0,0.00021917,2]
[341674721,1731082243490,-500.0,0.00021917,2]
[341674722,1731082243500,-500.0,0.00021917,2]
[341674723,1731082243510,-500.0,0.00021917,2]
[341674724,1731082243520,-500.0,0.00021917,2]
[341674725,1731082243530,-500.0,0.00021917,2]
[341674726,1731082243540,-506.09216154,0.00021917,2]
[341674728,1731082243550,-500.0,0.00021917,2]
[341674730,1731082243562,-500.0,0.00021917,2]
[341674732,1731082243572,-500.0,0.00021917,2]
[341674734,1731082243582,-500.0,0.00021917,2]
[341674736,1731082243593,-500.0,0.00021917,2]
[341674739,1731082243603,-500.0,0.00021917,2]
[341674741,1731082243613,-500.0,0.00021917,2]
[341674743,1731082243623,-500.0,0.00021917,2]
[341674745,1731082243644,-500.0,0.00021917,2]
[341674747,1731082243654,-500.0,0.00021917,2]
[341674749,1731082243664,-200.56296131,0.00021917,2]
[341674751,1731082243674,-501.06394467,0.00021917,2]
[341674753,1731082243684,-500.0,0.00021917,2]
[341674755,1731082243693,-410.94455582,0.00021917,2]
[341674756,1731082243703,-500.0,0.00021917,2]
[341674757,1731082243712,-500.0,0.00021917,2]
[341674758,1731082243722,-502.32370115,0.00021917,2]
[341674759,1731082243732,-500.0,0.00021917,2]
[341674760,1731082243742,-500.0,0.00021917,2]
[341674762,1731082243751,-568.04552787,0.00021917,2]
[341674764,1731082243760,-500.0,0.00021917,2]
[341674765,1731082243895,-500.0,0.00021917,2]
[341674766,1731082243904,-500.0,0.00021917,2]
[341674767,1731082243914,-500.0,0.00021917,2]
[341674768,1731082243924,-500.0,0.00021917,2]
[341674769,1731082243934,-500.0,0.00021917,2]
[341674770,1731082243947,-500.0,0.00021917,2]
[341674771,1731082243956,-500.0,0.00021917,2]
[341674772,1731082243965,-500.0,0.00021917,2]
[341674773,1731082243974,-500.0,0.00021917,2]
[341674774,1731082243985,-500.0,0.00021917,2]
[341674775,1731082243994,-500.0,0.00021917,2]
[341674776,1731082244003,-502.42707076,0.00021917,2]
[341674777,1731082244012,-500.0,0.00021917,2]
[341674778,1731082244023,-500.0,0.00021917,2]
[341674779,1731082244033,-500.0,0.00021917,2]
[341674780,1731082244043,-500.0,0.00021917,2]
[341674781,1731082244052,-500.0,0.00021917,2]
[341674782,1731082244061,-151.11217723,0.00021917,2]
[341674783,1731082244070,-500.0,0.00021917,2]
[341674784,1731082244080,-508.4952434,0.00021917,2]
[341674785,1731082244090,-500.0,0.00021917,2]
[341674786,1731082244099,-500.0,0.00021917,2]
[341674787,1731082244108,-500.0,0.00021917,2]
[341674788,1731082244119,-500.0,0.00021917,2]
[341674789,1731082244135,-503.06219977,0.00021917,2]
[341674790,1731082244145,-500.0,0.00021917,2]
[341674792,1731082244155,-500.0,0.00021917,2]
[341674794,1731082244165,-500.0,0.00021917,2]
[341674795,1731082244175,-500.0,0.00021917,2]
[341674796,1731082244184,-500.0,0.00021917,2]
[341674797,1731082244194,-500.0,0.00021917,2]
[341674798,1731082244203,-500.0,0.00021917,2]
[341674799,1731082244213,-500.0,0.00021917,2]
[341674800,1731082244224,-520.61026327,0.00021917,2]
[341674801,1731082244233,-500.0,0.00021917,2]
[341674802,1731082244242,-500.0,0.00021917,2]
[341674803,1731082244251,-500.0,0.00021917,2]
[341674804,1731082244261,-281.43557638,0.00021917,2]
[341674805,1731082244271,-500.0,0.00021917,2]
[341674806,1731082244279,-500.0,0.00021917,2]
[341674807,1731082244289,-500.0,0.00021917,2]
[341674808,1731082244298,-500.0,0.00021917,2]
[341674809,1731082244307,-501.59705022,0.00021917,2]
[341674810,1731082244316,-561.08,0.00021917,2]
[341674811,1731082244325,-500.0,0.00021917,2]
[341674812,1731082244335,-500.0,0.00021917,2]
[341674813,1731082244345,-500.0,0.00021917,2]
[341674814,1731082244355,-500.0,0.00021917,2]
[341674815,1731082244364,-500.0,0.00021917,2]
[341674816,1731082244372,-500.0,0.00021917,2]
[341674817,1731082244388,-317.03663391,0.00021917,2]
[341674818,1731082244442,-500.0,0.00021917,2]
[341674819,1731082244529,-500.0,0.00021917,2]
[341674820,1731082244662,-500.0,0.00021917,2]
[341674821,1731082244780,-500.0,0.00021917,2]
[341674822,1731082244878,-500.0,0.00021917,2]
[341674823,1731082244952,-500.0,0.00021917,2]
[341674824,1731082245039,-500.0,0.00021917,2]
[341674825,1731082245117,-500.0,0.00021917,2]
[341674826,1731082245235,-500.0,0.00021917,2]
[341674827,1731082245346,-500.0,0.00021917,2]
[341674828,1731082245412,-500.0,0.00021917,2]
[341674829,1731082245424,-500.0,0.00021917,2]
[341674830,1731082245434,-508.00012523,0.00021917,2]
[341674831,1731082245444,-500.0,0.00021917,2]
[341674832,1731082245454,-500.0,0.00021917,2]
[341674833,1731082245463,-500.0,0.00021917,2]
[341674834,1731082245473,-500.0,0.00021917,2]
[341674835,1731082245482,-500.0,0.00021917,2]
[341674836,1731082245491,-500.0,0.00021917,2]
[341674837,1731082245501,-502.71278832,0.00021917,2]
[341674838,1731082245510,-500.0,0.00021917,2]
[341674839,1731082245519,-500.0,0.00021917,2]
[341674840,1731082245529,-500.0,0.00021917,2]
[341674841,1731082245538,-597.49080181,0.00021917,2]
[341674842,1731082245547,-500.0,0.00021917,2]
[341674843,1731082245557,-500.0,0.00021917,2]
[341674844,1731082245566,-501.33175575,0.00021917,2]
[341674845,1731082245575,-500.0,0.00021917,2]
[341674846,1731082245585,-229.53495646,0.00021917,2]
[341674847,1731082245595,-500.0,0.00021917,2]
[341674848,1731082245605,-506.73797177,0.00021917,2]
[341674849,1731082245615,-500.0,0.00021917,2]
[341674850,1731082245625,-500.0,0.00021917,2]
[341674851,1731082245641,-507.67908108,0.00021917,2]
[341674852,1731082245651,-500.0,0.00021917,2]
[341674853,1731082245660,-500.0,0.00021917,2]
[341674854,1731082245669,-500.0,0.00021917,2]
[341674855,1731082245679,-500.0,0.00021917,2]
[341674856,1731082245689,-520.3442337,0.00021917,2]
[341674857,1731082245698,-500.0,0.00021917,2]
[341674858,1731082245707,-500.0,0.00021917,2]
[341674859,1731082245716,-500.0,0.00021917,2]
[341674860,1731082245725,-500.0,0.00021917,2]
[341674861,1731082245735,-500.0,0.00021917,2]
[341674862,1731082245745,-500.0,0.00021917,2]
[341674863,1731082245755,-500.0,0.00021917,2]
[341674864,1731082245764,-500.0,0.00021917,2]
[341674865,1731082245774,-500.0,0.00021917,2]
[341674866,1731082245783,-500.0,0.00021917,2]
[341674867,1731082245792,-500.0,0.00021917,2]
[341674868,1731082245800,-500.0,0.00021917,2]
[341674869,1731082245810,-500.0,0.00021917,2]
[341674870,1731082245821,-500.0,0.00021917,2]
[341674871,1731082245831,-500.0,0.00021917,2]
[341674872,1731082245840,-166.666666,0.00021918,2]
[341674873,1731082245849,-500.0,0.00021973,2]
[341674874,1731082245858,-500.0,0.00021973,2]
[341674875,1731082245867,-500.0,0.00022191,2]
[341674876,1731082245877,-500.0,0.00022191,2]
[341674877,1731082245886,-500.0,0.00022191,2]
[341674878,1731082245895,-250.0,0.00022191,2]
[341674879,1731082245905,-500.0,0.00022191,2]
[341674880,1731082245915,-500.0,0.00022191,2]
[341674881,1731082245924,-500.0,0.00022191,2]
[341674882,1731082245933,-465.50327333,0.00022191,2]
[341674883,1731082245947,-500.0,0.00022191,2]
[341674884,1731082245956,-500.0,0.00022191,2]
[341674885,1731082245966,-500.0,0.00022191,2]
[341674886,1731082245976,-500.0,0.00022191,2]
[341674887,1731082245986,-500.0,0.00022191,2]
[341674888,1731082245996,-500.0,0.00022191,2]
[341674890,1731082246006,-500.0,0.00022191,2]
[341674891,1731082246019,-572.36,0.00022191,2]
[341674892,1731082246028,-500.0,0.00022191,2]
[341674893,1731082246037,-500.0,0.00022191,2]
[341674895,1731082246046,-500.0,0.00022191,2]
[341674897,1731082246056,-500.0,0.00022191,2]
[341674898,1731082246065,-500.0,0.00022191,2]
[341674899,1731082246075,-302.76516271,0.00022191,2]
[341674900,1731082246085,-500.0,0.00022191,2]
[341674901,1731082246094,-460.14030567,0.00022191,2]
[341674902,1731082246104,-529.08779823,0.00022191,2]
[341674903,1731082246114,-500.0,0.00022191,2]
[341674904,1731082246123,-500.0,0.00022191,2]
[341674905,1731082246132,-504.921614,0.00022191,2]
[341674906,1731082246142,-500.0,0.00022191,2]
[341674907,1731082246152,-500.0,0.00022191,2]
[341674908,1731082246161,-500.0,0.00022191,2]
[341674909,1731082246171,-221.5057018,0.00022191,2]
[341674910,1731082246180,-554.34121798,0.00022191,2]
[341674911,1731082246190,-500.0,0.00022191,2]
[341674912,1731082246200,-500.0,0.00022191,2]
[341674913,1731082246210,-413.98683659,0.00022191,2]
[341674914,1731082246220,-150.7,0.00022191,2]
[341674915,1731082246230,-500.0,0.00022191,2]
[341674916,1731082246240,-500.0,0.00022191,2]
[341674917,1731082246250,-500.0,0.00022191,2]
[341674918,1731082246260,-244.83777295,0.00022191,2]
[341674919,1731082246270,-500.0,0.00022191,2]
[341674921,1731082246279,-500.0,0.00022191,2]
[341674922,1731082246289,-500.0,0.00022191,2]
[341674923,1731082246299,-422.39368226,0.00022191,2]
[341674924,1731082246309,-500.0,0.00022191,2]
[341674925,1731082246322,-500.0,0.00022191,2]
[341674926,1731082246334,-500.0,0.00022191,2]
[341674927,1731082246344,-500.0,0.00022191,2]
[341674928,1731082246355,-500.0,0.00022191,2]
[341674929,1731082246365,-500.0,0.00022191,2]
[341674930,1731082246375,-500.0,0.00022191,2]
[341674931,1731082246397,-455.62901085,0.00022191,2]
[341674933,1731082246407,-500.0,0.00022191,2]
[341674934,1731082246418,-500.0,0.00022191,2]
[341674935,1731082246429,-500.0,0.00022191,2]
[341674936,1731082246439,-596.37957882,0.00022191,2]
[341674937,1731082246449,-500.0,0.00022191,2]
[341674938,1731082246458,-500.0,0.00022191,2]
[341674939,1731082246468,-613.27546781,0.00022191,2]
[341674940,1731082246478,-210.88556123,0.00022191,2]
[341674941,1731082246488,-500.0,0.00022191,2]
[341674942,1731082246498,-500.0,0.00022191,2]
[341674943,1731082246508,-506.20537914,0.00022191,2]
[341674944,1731082246517,-500.0,0.00022191,2]
[341674945,1731082246527,-500.0,0.00022191,2]
[341674946,1731082246536,-438.36672872,0.00022191,2]
[341674947,1731082246547,-500.0,0.00022191,2]
[341674948,1731082246557,-308.34552908,0.00022191,2]
[341674949,1731082246566,-500.0,0.00022191,2]
[341674950,1731082246576,-500.0,0.00022191,2]
[341674951,1731082246586,-561.08,0.00022191,2]
[341674952,1731082246596,-500.0,0.00022191,2]
[341674953,1731082246605,-500.0,0.00022191,2]
[341674954,1731082246614,-500.0,0.00022191,2]
[341674955,1731082246623,-500.0,0.00022191,2]
[341674956,1731082246633,-500.0,0.00022191,2]
[341674957,1731082246642,-500.0,0.00022191,2]
[341674958,1731082246652,-500.0,0.00022191,2]
[341674959,1731082246661,-500.0,0.00022191,2]
[341674960,1731082246670,-500.0,0.00022191,2]
[341674961,1731082246680,-534.12779967,0.00022191,2]
[341674962,1731082246688,-500.0,0.00022191,2]
[341674963,1731082246698,-500.0,0.00022191,2]
[341674964,1731082246706,-500.0,0.00022191,2]
[341674965,1731082246714,-463.36782678,0.00022191,2]
[341674966,1731082246723,-500.0,0.00022191,2]
[341674967,1731082246733,-524.54999841,0.00022191,2]
[341674969,1731082246743,-442.94,0.00022191,2]
[341674971,1731082246754,-500.0,0.00022191,2]
[341674973,1731082246764,-508.77007165,0.00022191,2]
[341674975,1731082246774,-500.0,0.00022191,2]
[341674977,1731082246785,-500.0,0.00022191,2]
[341674979,1731082246795,-500.0,0.00022191,2]
[341674980,1731082246805,-500.0,0.00022191,2]
[341674981,1731082246815,-500.0,0.00022191,2]
[341674982,1731082246825,-500.0,0.00022191,2]
[341674983,1731082246836,-500.0,0.00022191,2]
[341674984,1731082246846,-500.0,0.00022191,2]
[341674985,1731082246858,-500.0,0.00022191,2]
[341674986,1731082246869,-402.70296483,0.00022191,2]
[341674987,1731082246879,-500.0,0.00022191,2]
[341674988,1731082246889,-761.548959,0.00022262,2]
[341674989,1731082246900,-166.666666,0.00022431,2]
[341674990,1731082246910,-230.08,0.00022465,2]
[341674991,1731082246920,-503.82290893,0.00022465,2]
[341674992,1731082246929,-500.0,0.00022465,2]
[341674993,1731082246939,-197.83,0.00022465,2]
[341674994,1731082246949,-500.0,0.00022465,2]
[341674995,1731082246960,-500.0,0.00022465,2]
[341674996,1731082246971,-500.0,0.00022465,2]
[341674997,1731082246981,-500.0,0.00022465,2]
[341674998,1731082246990,-500.0,0.00022465,2]
[341674999,1731082246999,-500.0,0.00022465,2]
[341675000,1731082247008,-506.42965363,0.00022465,2]
[341675001,1731082247018,-500.0,0.00022465,2]
[341675002,1731082247028,-500.0,0.00022465,2]
[341675003,1731082247040,-500.0,0.00022465,2]
[341675004,1731082247050,-500.0,0.00022465,2]
[341675005,1731082247060,-500.0,0.00022465,2]
[341675006,1731082247070,-500.0,0.00022465,2]
[341675007,1731082247079,-500.0,0.00022465,2]
[341675008,1731082247090,-500.0,0.00022465,2]
[341675009,1731082247100,-500.0,0.00022465,2]
[341675010,1731082247110,-585.64495863,0.00022465,2]
[341675011,1731082247120,-500.0,0.00022465,2]
[341675012,1731082247129,-500.0,0.00022465,2]
[341675013,1731082247140,-500.0,0.00022465,2]
[341675014,1731082247150,-500.0,0.00022465,2]
[341675015,1731082247160,-500.0,0.00022465,2]
[341675016,1731082247170,-500.0,0.00022465,2]
[341675017,1731082247179,-500.0,0.00022465,2]
[341675018,1731082247189,-500.0,0.00022465,2]
[341675019,1731082247199,-414.05229471,0.00022465,2]
[341675020,1731082247208,-561.08,0.00022465,2]
[341675021,1731082247217,-507.19836782,0.00022465,2]
[341675022,1731082247228,-500.0,0.00022465,2]
[341675023,1731082247238,-500.0,0.00022465,2]
[341675024,1731082247248,-500.0,0.00022465,2]
[341675025,1731082247258,-500.0,0.00022465,2]
[341675026,1731082247268,-500.0,0.00022465,2]
[341675027,1731082247277,-539.58,0.00022465,2]
[341675028,1731082247286,-500.0,0.00022465,2]
[341675029,1731082247296,-500.0,0.00022465,2]
[341675030,1731082247305,-500.0,0.00022465,2]
[341675031,1731082247316,-500.0,0.00022465,2]
[341675032,1731082247326,-500.0,0.00022465,2]
[341675033,1731082247336,-325.29600074,0.00022739,2]
[341675034,1731082247346,-419.80843061,0.00022739,2]
[341675035,1731082247361,-377.73,0.00022739,2]
[341675036,1731082247380,-481.56,0.00022739,2]
[341675037,1731082247399,-230.73,0.00022739,2]
[341675038,1731082247511,-500.0,0.00022739,2]
[341675039,1731082247522,-514.72432807,0.00022739,2]
[341675040,1731082247532,-500.0,0.00022739,2]
[341675041,1731082247543,-500.0,0.00022739,2]
[341675042,1731082247553,-539.21817077,0.00022739,2]
[341675043,1731082247563,-500.0,0.00022739,2]
[341675044,1731082247573,-500.0,0.00022739,2]
[341675045,1731082247583,-500.0,0.00022739,2]
[341675046,1731082247592,-500.0,0.00022739,2]
[341675047,1731082247603,-500.0,0.00022739,2]
[341675048,1731082247613,-561.08,0.00022739,2]
[341675049,1731082247623,-500.0,0.00022739,2]
[341675050,1731082247633,-500.0,0.00022739,2]
[341675051,1731082247643,-500.0,0.00022739,2]
[341675052,1731082247652,-503.88167079,0.00022739,2]
[341675053,1731082247661,-500.0,0.00022739,2]
[341675054,1731082247670,-157.0,0.00022739,2]
[341675055,1731082247680,-500.0,0.00022739,2]
[341675056,1731082247690,-500.0,0.00022739,2]
[341675057,1731082247699,-420.0,0.00022754,2]
[341675058,1731082247709,-166.666666,0.00022944,2]
[341675059,1731082247719,-420.0,0.00023007,2]
[341675060,1731082247729,-500.0,0.00023013,2]
[341675061,1731082247739,-500.0,0.00023013,2]
[341675062,1731082247748,-500.0,0.00023013,2]
[341675063,1731082247757,-500.0,0.00023013,2]
[341675064,1731082247766,-500.0,0.00023013,2]
[341675065,1731082247776,-500.0,0.00023013,2]
[341675066,1731082247785,-561.08,0.00023013,2]
[341675067,1731082247795,-500.0,0.00023013,2]
[341675068,1731082247804,-500.0,0.00023013,2]
[341675069,1731082247814,-242.6,0.00023013,2]
[341675070,1731082247824,-500.0,0.00023013,2]
[341675071,1731082247835,-1000.0,0.00023187,2]
[341675072,1731082247845,-2451.96249169,0.00023237,2]
[341675073,1731082247855,-475.32,0.00023287,2]
[341675074,1731082247865,-500.0,0.00023287,2]
[341675075,1731082247874,-500.0,0.00023287,2]
[341675076,1731082247884,-500.0,0.00023287,2]
[341675077,1731082247893,-500.0,0.00023287,2]
[341675078,1731082247904,-500.0,0.00023287,2]
[341675079,1731082247913,-561.08,0.00023287,2]
[341675080,1731082247923,-500.0,0.00023287,2]
[341675081,1731082247934,-500.0,0.00023287,2]
[341675082,1731082247951,-462.05331302,0.00023287,2]
[341675083,1731082247967,-1000.0,0.00023342,2]
[341675084,1731082247977,-1000.0,0.00023342,2]
[341675085,1731082247988,-166.666666,0.00023456,2]
[341675086,1731082247998,-500.0,0.00023561,2]
[341675087,1731082248009,-500.0,0.00023561,2]
[341675088,1731082248019,-500.0,0.00023561,2]
[341675089,1731082248029,-561.08,0.00023561,2]
[341675090,1731082248040,-500.0,0.00023561,2]
[341675091,1731082248049,-500.0,0.00023561,2]
[341675092,1731082248060,-174.03601495,0.00023606,2]
[341675093,1731082248070,-500.0,0.00023835,2]
[341675094,1731082248080,-500.0,0.00023835,2]
[341675095,1731082248090,-561.08,0.00023835,2]
[341675096,1731082248101,-500.0,0.00023835,2]
[341675097,1731082248111,-500.0,0.00023835,2]
[341675098,1731082248121,-176.0380909,0.00023836,2]
[341675099,1731082248132,-245.53872491,0.00023841,2]
[341675100,1731082248142,-3179.8552442,0.00023842,2]
[341675101,1731082248152,-166.666666,0.00023969,2]
[341675102,1731082248162,-500.0,0.00024109,2]
[341675103,1731082248172,-500.0,0.00024109,2]
[341675104,1731082248183,-561.08,0.00024109,2]
[341675105,1731082248194,-500.0,0.00024109,2]
[341675106,1731082248204,-500.0,0.00024109,2]
[341675107,1731082248214,-500.0,0.00024383,2]
[341675108,1731082248224,-500.0,0.00024383,2]
[341675109,1731082248234,-561.08,0.00024383,2]
[341675110,1731082248244,-500.0,0.00024383,2]
[341675111,1731082248255,-500.0,0.00024383,2]
[341675112,1731082248265,-166.666666,0.00024482,2]
[341675113,1731082248275,-500.0,0.00024657,2]
[341675114,1731082248286,-500.0,0.00024657,2]
[341675115,1731082248296,-561.08,0.00024657,2]
[341675116,1731082248306,-500.0,0.00024657,2]
[341675117,1731082248316,-500.0,0.00024657,2]
[341675118,1731082248327,-150.0,0.00024658,2]
[341675119,1731082248336,-2451.96249169,0.00024658,2]
[341675120,1731082248345,-500.0,0.00024658,2]
[341675121,1731082248356,-500.0,0.00024658,2]
[341675122,1731082248365,-500.0,0.00024658,2]
[341675123,1731082248375,-500.0,0.00024658,2]
[341675124,1731082248384,-500.0,0.00024658,2]
[341675125,1731082248394,-638.64855305,0.00024658,2]
[341675126,1731082248405,-500.0,0.00024658,2]